bitfinex/quotes_BTCUSD_20250127
["timestamp","ask_amount","ask_price","bid_price","bid_amount"]
[1737971001338,0.151295,99144.0,99140.0,0.0473]
[1737971001511,0.00909577,99145.0,99140.0,0.0473]
[1737971001874,0.00909577,99145.0,99134.0,0.00986433]
[1737971001875,0.151295,99144.0,99134.0,0.00986433]
[1737971002101,0.151295,99144.0,99130.0,0.201755]
[1737971002294,0.151295,99144.0,99131.0,0.201753]
[1737971002502,0.151295,99144.0,99137.0,0.151304]
[1737971003115,0.10644306,99145.0,99133.0,0.201749]
[1737971003427,0.10644306,99145.0,99129.0,0.1281]
[1737971003428,0.00909577,99145.0,99144.0,0.151295]
[1737971003986,0.00909577,99145.0,99142.0,0.151297]
[1737971003987,0.00809577,99145.0,99142.0,0.151297]
[1737971004196,0.00809577,99145.0,99141.0,0.151299]
[1737971004816,0.00789577,99145.0,99144.0,0.151295]
[1737971005079,0.00789577,99145.0,99144.0,0.15330359]
[1737971005298,0.00789577,99145.0,99144.0,0.151295]
[1737971005510,0.00789577,99145.0,99144.0,0.233395]
[1737971005987,0.00789577,99145.0,99144.0,0.383395]
[1737971006951,0.00789577,99145.0,99141.0,0.00905809]
[1737971007152,0.00789577,99145.0,99144.0,0.151295]
[1737971007642,0.00789577,99145.0,99144.0,0.152295]
[1737971007842,0.00789577,99145.0,99144.0,0.151295]
[1737971008676,0.00789577,99145.0,99144.0,0.153295]
[1737971009132,0.25653606,99145.0,99144.0,0.002]
[1737971010128,0.2640789,99145.0,99144.0,0.002]
[1737971010692,0.2640789,99145.0,99140.0,0.151301]
[1737971010895,0.2640789,99145.0,99133.0,0.201747]
[1737971010896,0.01543861,99145.0,99134.0,0.15]
[1737971011097,0.01543861,99145.0,99144.0,0.152295]
[1737971011594,0.01743861,99145.0,99144.0,0.151295]
[1737971011806,0.01543861,99145.0,99134.0,0.15]
[1737971012005,0.01543861,99145.0,99144.0,0.151295]
[1737971012205,0.01543861,99145.0,99137.0,0.201739]
[1737971012435,0.01543861,99145.0,99134.0,0.201747]
[1737971012735,0.1513,99141.0,99134.0,0.151309]
[1737971012929,0.201726,99144.0,99136.0,0.151307]
[1737971013132,0.151301,99140.0,99129.0,0.048]
[1737971013354,0.151301,99140.0,99135.0,0.151308]
[1737971013493,0.00754284,99144.0,99129.0,0.05823322]
[1737971013706,0.201742,99137.0,99129.0,0.01023322]
[1737971014014,0.151308,99136.0,99129.0,0.151317]
[1737971014218,0.151306,99137.0,99127.0,0.01006557]
[1737971014419,0.353047,99137.0,99130.0,0.151315]
[1737971014736,0.21939281,99144.0,99121.0,0.0776]
[1737971014737,0.00754284,99135.0,99121.0,0.0776]
[1737971015076,0.09734729,99134.0,99129.0,0.001]
[1737971015275,0.151311,99133.0,99129.0,0.002]
[1737971015402,0.09734729,99133.0,99129.0,0.002]
[1737971015604,0.09734729,99133.0,99123.0,0.15]
[1737971015830,0.151318,99129.0,99124.0,0.151325]
[1737971016176,0.09734729,99128.0,99122.0,0.00163618]
[1737971016377,0.24866729,99128.0,99122.0,0.00163618]
[1737971016558,0.24866729,99128.0,99122.0,0.15296418]
[1737971016756,0.24866729,99128.0,99122.0,0.00163618]
[1737971016958,0.151323,99126.0,99122.0,0.00163618]
[1737971017162,0.09734729,99125.0,99122.0,0.00163618]
[1737971017478,0.09734729,99125.0,99122.0,0.00063618]
[1737971017694,0.09734729,99125.0,99123.0,0.001]
[1737971017878,0.10489013,99125.0,99123.0,0.001]
[1737971018224,0.10489013,99125.0,99122.0,0.15196418]
[1737971018426,0.10489013,99125.0,99122.0,0.15396418]
[1737971018810,0.10489013,99125.0,99122.0,0.00163618]
[1737971019119,0.10489013,99125.0,99122.0,0.00063618]
[1737971019845,0.151327,99123.0,99122.0,0.00063618]
[1737971020639,0.00754284,99124.0,99122.0,0.00063618]
[1737971020839,0.00754284,99124.0,99122.0,0.00263618]
[1737971021081,0.01887405,99123.0,99122.0,0.15296318]
[1737971021280,0.01887405,99123.0,99122.0,0.15296418]
[1737971021490,0.02641689,99123.0,99122.0,0.15196418]
[1737971021942,0.02741689,99123.0,99122.0,0.15196418]
[1737971022126,0.02741689,99123.0,99122.0,0.15296418]
[1737971022359,0.02641689,99123.0,99122.0,0.15276418]
[1737971023483,0.02641689,99123.0,99122.0,0.00043618]
[1737971023612,0.27509118,99123.0,99122.0,0.00143618]
[1737971024095,0.27509118,99123.0,99122.0,0.00243618]
[1737971024500,0.27509118,99123.0,99122.0,0.00043618]
[1737971024701,0.28527138,99123.0,99122.0,0.00043618]
[1737971024903,0.28527138,99123.0,99122.0,0.00143618]
[1737971025039,0.28527138,99123.0,99122.0,0.00043618]
[1737971025040,0.27509118,99123.0,99122.0,0.00043618]
[1737971025471,0.27509118,99123.0,99122.0,0.00343618]
[1737971026084,0.25621713,99123.0,99122.0,0.00343618]
[1737971026725,0.25621713,99123.0,99122.0,0.00143618]
[1737971026928,0.25721713,99123.0,99122.0,0.00043618]
[1737971027486,0.25621713,99123.0,99122.0,0.00043618]
[1737971027618,0.25721713,99123.0,99122.0,0.00043618]
[1737971027822,0.25621713,99123.0,99122.0,0.00043618]
[1737971028249,0.25821713,99123.0,99122.0,0.00043618]
[1737971028812,0.25921713,99123.0,99122.0,0.00043618]
[1737971029958,0.26121713,99123.0,99122.0,0.00043618]
[1737971033732,0.43249974,99123.0,99122.0,0.00043618]
[1737971035106,0.43149974,99123.0,99122.0,0.00043618]
[1737971035261,0.43349974,99123.0,99122.0,0.00043618]
[1737971036031,0.18082545,99123.0,99122.0,0.15176418]
[1737971036258,0.00954284,99123.0,99122.0,0.15176418]
[1737971036456,0.01084063,99123.0,99122.0,0.15176418]
[1737971036659,0.00784063,99123.0,99122.0,0.15176418]
[1737971036893,0.00784063,99123.0,99122.0,0.15276418]
[1737971037104,0.00784063,99123.0,99122.0,0.16358965]
[1737971037295,0.00029779,99123.0,99122.0,0.16258965]
[1737971037498,0.00029779,99123.0,99122.0,0.16158965]
[1737971040210,0.00029779,99123.0,99122.0,0.31259835]
[1737971040414,0.00029779,99123.0,99122.0,0.44193694]
[1737971040630,0.00754284,99135.0,99134.0,0.30131]
[1737971040836,0.00819356,99145.0,99144.0,0.301295]
[1737971041038,0.00819356,99145.0,99144.0,0.379895]
[1737971041592,0.00819356,99145.0,99142.0,0.201729]
[1737971041810,0.00819356,99145.0,99144.0,0.151295]
[1737971042018,0.00819356,99145.0,99144.0,0.154295]
[1737971043538,0.00819356,99145.0,99144.0,0.151295]
[1737971043738,0.00819356,99145.0,99144.0,0.152295]
[1737971043933,0.00819356,99145.0,99144.0,0.153295]
[1737971044376,0.00819356,99145.0,99144.0,0.151295]
[1737971044553,0.00819356,99145.0,99144.0,0.152295]
[1737971044759,0.00819356,99145.0,99144.0,0.15330349]
[1737971045085,0.00819356,99145.0,99144.0,0.22820338]
[1737971045287,0.00819356,99145.0,99144.0,0.228195]
[1737971046275,0.00819356,99145.0,99144.0,0.229195]
[1737971046492,0.00819356,99145.0,99144.0,0.228195]
[1737971046901,0.00819356,99145.0,99144.0,0.229195]
[1737971047138,0.00819356,99145.0,99144.0,0.228195]
[1737971047582,0.00819356,99145.0,99144.0,0.50854229]
[1737971047782,0.00753162,99168.0,99167.0,0.151259]
[1737971047988,0.00753162,99168.0,99167.0,0.377159]
[1737971048168,0.00753162,99168.0,99167.0,0.426859]
[1737971048367,0.17128261,99179.0,99167.0,0.2756]
[1737971048595,0.17128261,99179.0,99178.0,0.151243]
[1737971048948,0.1717755,99179.0,99178.0,0.151243]
[1737971051149,0.00049289,99179.0,99178.0,0.301243]
[1737971051541,0.00049289,99179.0,99178.0,0.3112054]
[1737971053015,0.00049289,99179.0,99178.0,0.3142054]
[1737971053523,0.00049289,99179.0,99178.0,0.3172054]
[1737971054130,0.00049289,99179.0,99178.0,0.3142054]
[1737971054359,0.00049289,99179.0,99178.0,0.3152054]
[1737971055571,0.00049289,99179.0,99178.0,0.3112054]
[1737971055994,0.00049289,99179.0,99178.0,0.3142054]
[1737971056189,0.00049289,99179.0,99178.0,0.3310054]
[1737971056369,0.00049289,99179.0,99178.0,0.42835269]
[1737971056570,0.00049289,99179.0,99178.0,0.41135269]
[1737971056775,0.00049289,99179.0,99178.0,0.40835269]
[1737971056980,0.00049289,99179.0,99178.0,0.3120054]
[1737971057181,0.00049289,99179.0,99178.0,0.3150054]
[1737971057400,0.00049289,99179.0,99178.0,0.3140054]
[1737971057855,0.00049289,99179.0,99178.0,0.3150054]
[1737971058382,0.00049289,99179.0,99178.0,0.3140054]
[1737971058587,0.00049289,99179.0,99178.0,0.3120054]
[1737971059045,0.00049289,99179.0,99178.0,0.3150054]
[1737971059046,0.00063469,99179.0,99178.0,0.3150054]
[1737971062709,0.00063469,99179.0,99178.0,0.1650054]
[1737971062906,0.00063469,99179.0,99178.0,0.155243]
[1737971063479,0.00063469,99179.0,99178.0,0.004]
[1737971064115,0.15187569,99179.0,99178.0,0.004]
[1737971065061,0.15187569,99179.0,99178.0,0.003]
[1737971065215,0.151266,99163.0,99150.0,0.14897123]
[1737971065394,0.17864729,99178.0,99156.0,0.151276]
[1737971065598,0.17864729,99178.0,99150.0,0.14897123]
[1737971065599,0.151263,99165.0,99150.0,0.14897123]
[1737971065948,0.151271,99160.0,99155.0,0.15]
[1737971066080,0.0488,99168.0,99155.0,0.15]
[1737971066287,0.201682,99166.0,99155.0,0.301278]
[1737971066497,0.201682,99166.0,99155.0,0.15]
[1737971066702,0.151269,99161.0,99156.0,0.002]
[1737971066907,0.151269,99161.0,99155.0,0.15]
[1737971067119,0.201688,99163.0,99151.0,0.201712]
[1737971067322,0.15127,99161.0,99151.0,0.201712]
[1737971067547,0.151275,99157.0,99150.0,0.0099442]
[1737971067757,0.2455,99165.0,99150.0,0.0099442]
[1737971067758,0.151278,99156.0,99150.0,0.0099442]
[1737971067960,0.151278,99156.0,99150.0,0.151285]
[1737971068182,0.151273,99158.0,99137.0,0.201741]
[1737971068386,0.15127,99160.0,99155.0,0.001]
[1737971068614,0.15127,99160.0,99156.0,0.002]
[1737971068818,0.2455,99164.0,99156.0,0.002]
[1737971069363,0.151272,99159.0,99156.0,0.002]
[1737971069583,0.151269,99161.0,99156.0,0.002]
[1737971069785,0.201688,99163.0,99156.0,0.002]
[1737971069989,0.20169,99162.0,99148.0,0.15]
[1737971070193,0.20169,99162.0,99156.0,0.003]
[1737971070194,0.151273,99159.0,99156.0,0.003]
[1737971070389,0.02633776,99160.0,99156.0,0.003]
[1737971071013,0.01881269,99159.0,99156.0,0.003]
[1737971071277,0.01881269,99159.0,99156.0,0.004]
[1737971071425,0.01881269,99159.0,99156.0,0.001]
[1737971071627,0.151273,99158.0,99153.0,0.0001418]
[1737971071829,0.01881269,99159.0,99153.0,0.0001418]
[1737971071830,0.01881269,99159.0,99154.0,0.151278]
[1737971072265,0.01881269,99158.0,99154.0,0.151278]
[1737971072583,0.01881269,99158.0,99156.0,0.002]
[1737971072794,0.01881269,99157.0,99156.0,0.002]
[1737971073321,0.01881269,99157.0,99154.0,0.151278]
[1737971074194,0.01881269,99157.0,99153.0,0.0001418]
[1737971074400,0.01981269,99157.0,99153.0,0.0001418]
[1737971074697,0.01881269,99156.0,99154.0,0.151278]
[1737971075780,0.01881269,99155.0,99154.0,0.151278]
[1737971075985,0.01881269,99155.0,99153.0,0.0001418]
[1737971077507,0.01881269,99155.0,99154.0,0.15]
[1737971077869,0.01981269,99155.0,99154.0,0.15]
[1737971078073,0.001,99155.0,99154.0,0.15]
[1737971078276,0.151278,99155.0,99154.0,0.15]
[1737971078477,0.151278,99155.0,99153.0,0.0001418]
[1737971078478,0.001,99155.0,99153.0,0.0001418]
[1737971078686,0.079,99154.0,99153.0,0.0001418]
[1737971078884,0.230279,99154.0,99153.0,0.0001418]
[1737971079085,0.09781269,99154.0,99153.0,0.0001418]
[1737971080515,0.24909169,99154.0,99153.0,0.0001418]
[1737971080709,0.09781269,99154.0,99153.0,0.0001418]
[1737971080929,0.01881269,99154.0,99153.0,0.3014228]
[1737971081134,0.2455,99158.0,99153.0,0.3014228]
[1737971081356,0.001,99154.0,99153.0,0.1501418]
[1737971086877,0.001,99154.0,99153.0,0.3014228]
[1737971087692,0.00752037,99156.0,99155.0,0.151278]
[1737971088517,0.2455,99157.0,99156.0,0.151276]
[1737971088919,0.25312315,99157.0,99156.0,0.151276]
[1737971089884,0.26065641,99157.0,99156.0,0.151276]
[1737971090186,0.01515641,99157.0,99156.0,0.151276]
[1737971091534,0.00762315,99157.0,99156.0,0.151276]
[1737971091734,0.00762315,99157.0,99156.0,0.152276]
[1737971093432,0.01515641,99157.0,99156.0,0.152276]
[1737971095078,0.01515641,99157.0,99156.0,0.151276]
[1737971095707,0.01515641,99157.0,99156.0,0.152276]
[1737971095886,0.01515641,99157.0,99156.0,0.151276]
[1737971097323,0.01515641,99157.0,99156.0,0.152276]
[1737971097563,0.01515641,99157.0,99156.0,0.151276]
[1737971098045,0.01515641,99157.0,99156.0,0.301276]
[1737971100617,0.00762315,99157.0,99156.0,0.301276]
[1737971100824,0.00762315,99157.0,99156.0,0.304276]
[1737971101067,0.00762315,99157.0,99156.0,0.302276]
[1737971101475,0.00762315,99157.0,99156.0,0.304276]
[1737971101909,0.01515641,99157.0,99156.0,0.304276]
[1737971102102,0.26065641,99157.0,99156.0,0.304276]
[1737971102882,0.25312315,99157.0,99156.0,0.304276]
[1737971104010,0.25312315,99157.0,99156.0,0.303276]
[1737971104203,0.25312315,99157.0,99156.0,0.302276]
[1737971104547,0.25312315,99157.0,99156.0,0.304276]
[1737971104756,0.25312315,99157.0,99156.0,0.303276]
[1737971105173,0.25312315,99157.0,99156.0,0.304276]
[1737971105796,0.25312315,99157.0,99156.0,0.154276]
[1737971107081,0.25312315,99157.0,99156.0,0.15157336]
[1737971107212,0.26067601,99157.0,99156.0,0.15157336]
[1737971107416,0.26167601,99157.0,99156.0,0.15157336]
[1737971107617,0.26067601,99157.0,99156.0,0.15157336]
[1737971108029,0.26067601,99157.0,99156.0,0.30157336]
[1737971110216,0.3580233,99157.0,99156.0,0.00029736]
[1737971110435,0.26067601,99157.0,99156.0,0.15157336]
[1737971111530,0.26167601,99157.0,99156.0,0.15157336]
[1737971111908,0.26367601,99157.0,99156.0,0.15157336]
[1737971112303,0.26267601,99157.0,99156.0,0.15157336]
[1737971113314,0.26067601,99157.0,99156.0,0.15157336]
[1737971113566,0.26067601,99157.0,99156.0,0.30257336]
[1737971113947,0.01517601,99157.0,99156.0,0.30257336]
[1737971116576,0.01517601,99157.0,99156.0,0.87726965]
[1737971116782,0.01517601,99157.0,99156.0,0.60416265]
[1737971117403,0.01517601,99157.0,99156.0,0.60316265]
[1737971117816,0.01517601,99157.0,99156.0,0.60616265]
[1737971118278,0.00762315,99157.0,99156.0,0.65166265]
[1737971118638,0.00762315,99157.0,99156.0,0.65266265]
[1737971119764,0.00762315,99157.0,99156.0,0.65466265]
[1737971119974,0.00762315,99157.0,99156.0,0.65166265]
[1737971120255,0.00762315,99157.0,99156.0,0.65366265]
[1737971120365,0.00762315,99157.0,99156.0,0.65766265]
[1737971121002,0.00762315,99157.0,99156.0,0.55322065]
[1737971121003,1.5e-07,99157.0,99156.0,0.55322065]
[1737971121229,1.5e-07,99157.0,99156.0,0.56322065]
[1737971121429,1.5e-07,99157.0,99156.0,2.06322065]
[1737971121896,1.5e-07,99157.0,99156.0,2.05322065]
[1737971122293,1.5e-07,99157.0,99156.0,0.53022065]
[1737971122525,1.5e-07,99157.0,99156.0,0.30757336]
[1737971122927,1.5e-07,99157.0,99156.0,0.30357336]
[1737971123344,0.00100015,99157.0,99156.0,0.31157336]
[1737971123550,1.5e-07,99157.0,99156.0,0.30357336]
[1737971123927,1.5e-07,99157.0,99156.0,0.30557336]
[1737971124334,1.5e-07,99157.0,99156.0,0.30857336]
[1737971124759,1.5e-07,99157.0,99156.0,0.30157336]
[1737971125336,1.5e-07,99157.0,99156.0,0.30357336]
[1737971126332,1.5e-07,99157.0,99156.0,0.30757336]
[1737971126534,0.24550015,99157.0,99156.0,0.30357336]
[1737971127059,0.39677515,99157.0,99156.0,0.00229736]
[1737971127263,0.24550015,99157.0,99156.0,0.00429736]
[1737971127464,0.39677515,99157.0,99156.0,0.00229736]
[1737971127781,0.39677515,99157.0,99156.0,0.00629736]
[1737971127980,0.24550015,99157.0,99156.0,0.00429736]
[1737971128180,0.27190382,99157.0,99156.0,0.00029736]
[1737971129735,0.27190382,99157.0,99156.0,0.15157336]
[1737971130063,0.25304248,99157.0,99156.0,0.15157336]
[1737971130305,0.25304248,99157.0,99156.0,0.00029736]
[1737971130745,0.50166477,99157.0,99156.0,0.00029736]
[1737971132868,0.151279,99155.0,99153.0,0.0001418]
[1737971133103,0.09734729,99154.0,99153.0,0.0001418]
[1737971133910,0.11619954,99154.0,99153.0,0.0001418]
[1737971134113,0.11619954,99154.0,99153.0,0.1514228]
[1737971134521,0.01885225,99154.0,99153.0,0.15031185]
[1737971134721,0.26435225,99154.0,99153.0,0.15031185]
[1737971134931,0.27289458,99154.0,99153.0,0.15031185]
[1737971135156,0.27289458,99154.0,99153.0,0.14920091]
[1737971135861,0.27289458,99154.0,99153.0,0.14808994]
[1737971136298,0.27489458,99154.0,99153.0,0.14808994]
[1737971137511,0.27489458,99154.0,99149.0,0.201716]
[1737971137715,0.27489458,99154.0,99153.0,0.151281]
[1737971138297,0.27389458,99154.0,99153.0,0.151281]
[1737971139120,0.25504233,99154.0,99153.0,0.151281]
[1737971140149,0.25304233,99154.0,99153.0,0.151281]
[1737971140380,0.25404233,99154.0,99153.0,0.152281]
[1737971140917,0.25304233,99154.0,99153.0,0.152281]
[1737971141569,0.25304233,99154.0,99153.0,0.001]
[1737971141743,0.0784,99153.0,99146.0,0.201722]
[1737971141958,0.0784,99153.0,99152.0,0.151282]
[1737971142102,0.0784,99153.0,99148.0,0.201718]
[1737971142315,0.0784,99153.0,99135.0,0.201743]
[1737971142316,0.38954729,99152.0,99135.0,0.201743]
[1737971142527,0.151297,99143.0,99136.0,0.151305]
[1737971142726,0.09734729,99142.0,99137.0,0.15]
[1737971142931,0.09734729,99142.0,99138.0,0.151303]
[1737971143355,0.151306,99137.0,99129.0,0.151317]
[1737971143526,0.2455,99136.0,99125.0,0.201765]
[1737971143727,0.2455,99136.0,99130.0,0.301315]
[1737971143926,0.2455,99136.0,99131.0,0.201752]
[1737971144174,0.01884866,99135.0,99133.0,0.15131]
[1737971144357,0.19801,99134.0,99125.0,0.201765]
[1737971144569,0.14404729,99134.0,99125.0,0.151323]
[1737971144721,0.0784,99132.0,99123.0,0.0001418]
[1737971144938,0.229725,99124.0,99123.0,0.0001418]
[1737971145166,0.32707229,99124.0,99123.0,0.0001418]
[1737971146454,0.7905549,99124.0,99123.0,0.0001418]
[1737971146877,0.82147331,99124.0,99123.0,0.0001418]
[1737971147208,0.82901564,99124.0,99123.0,0.0001418]
[1737971147405,0.83001564,99124.0,99123.0,0.0001418]
[1737971147728,0.66662089,99124.0,99123.0,0.0001418]
[1737971147936,0.81794589,99124.0,99123.0,0.0001418]
[1737971148904,0.79909723,99124.0,99123.0,0.0001418]
[1737971149335,0.79809723,99124.0,99123.0,0.0001418]
[1737971149508,0.79909723,99124.0,99123.0,0.0001418]
[1737971149962,0.79809723,99124.0,99123.0,0.0001418]
[1737971150148,0.79909723,99124.0,99123.0,0.0001418]
[1737971150587,0.79809723,99124.0,99123.0,0.0001418]
[1737971150759,0.79909723,99124.0,99123.0,0.0001418]
[1737971151215,0.79809723,99124.0,99123.0,0.0001418]
[1737971151625,0.151327,99123.0,99122.0,0.0001153]
[1737971151825,0.24867429,99123.0,99122.0,0.0001153]
[1737971153174,0.25267429,99123.0,99122.0,0.0001153]
[1737971153358,0.25621662,99123.0,99122.0,0.0001153]
[1737971153721,0.26221662,99123.0,99122.0,0.0001153]
[1737971153935,0.25821662,99123.0,99122.0,0.0001153]
[1737971154154,0.25621662,99123.0,99122.0,0.0001153]
[1737971154319,0.26021662,99123.0,99122.0,0.0001153]
[1737971154520,0.26221662,99123.0,99122.0,0.0001153]
[1737971155567,0.67499923,99123.0,99122.0,0.0001153]
[1737971156196,0.69179739,99123.0,99122.0,0.0001153]
[1737971156536,0.69279739,99123.0,99122.0,0.0001153]
[1737971157157,0.67399923,99123.0,99122.0,0.0001153]
[1737971160064,0.66818809,99123.0,99122.0,0.0001153]
[1737971161773,0.52167223,99123.0,99122.0,0.0001153]
[1737971161981,0.42432494,99123.0,99122.0,0.1514433]
[1737971162389,0.42432494,99123.0,99122.0,0.3014433]
[1737971162798,0.00754233,99123.0,99122.0,0.3014433]
[1737971163309,0.41678261,99141.0,99140.0,0.151301]
[1737971164699,0.42430156,99141.0,99140.0,0.151301]
[1737971165667,0.42530156,99141.0,99140.0,0.151301]
[1737971166505,0.42430156,99141.0,99140.0,0.348401]
[1737971166761,0.42430156,99141.0,99140.0,0.349401]
[1737971166946,0.42430156,99141.0,99140.0,0.351401]
[1737971167302,0.42430156,99141.0,99140.0,0.348401]
[1737971168323,0.17128261,99141.0,99140.0,0.348401]
[1737971168901,0.17128261,99141.0,99140.0,0.353401]
[1737971169314,0.17128261,99141.0,99140.0,0.349401]
[1737971169514,0.17128261,99141.0,99140.0,0.350401]
[1737971169977,0.17128261,99141.0,99140.0,0.351401]
[1737971170183,0.17128261,99141.0,99140.0,0.47174829]
[1737971170356,0.17128261,99141.0,99140.0,0.54754829]
[1737971170593,0.17128261,99141.0,99140.0,0.55754829]
[1737971171407,0.17128261,99141.0,99140.0,2.05754829]
[1737971171622,0.17128261,99141.0,99140.0,2.17252729]
[1737971173217,0.13093661,99141.0,99140.0,2.17252729]
[1737971173422,3.6e-07,99153.0,99150.0,0.16]
[1737971173632,3.6e-07,99153.0,99152.0,0.324282]
[1737971173973,3.6e-07,99153.0,99152.0,0.43162929]
[1737971174174,8.7e-07,99157.0,99156.0,0.477176]
[1737971174377,0.1849,99192.0,99177.0,0.301244]
[1737971174577,0.1850416,99178.0,99177.0,0.301244]
[1737971174780,0.1850416,99178.0,99177.0,0.151244]
[1737971174988,0.1850416,99178.0,99173.0,0.201666]
[1737971175194,0.1850416,99178.0,99177.0,0.151244]
[1737971177151,0.1850416,99178.0,99172.0,0.15]
[1737971177349,0.1850416,99178.0,99177.0,0.151244]
[1737971177959,0.1850416,99178.0,99174.0,0.151248]
[1737971178165,0.1850416,99178.0,99176.0,0.151244]
[1737971178581,0.1850416,99178.0,99177.0,0.151244]
[1737971178783,0.3931525,99178.0,99157.0,0.2017]
[1737971178984,0.0751,99176.0,99144.0,0.15]
[1737971179348,0.09734729,99175.0,99150.0,0.00014823]
[1737971179546,0.09734729,99175.0,99152.0,0.15]
[1737971179747,0.09734729,99175.0,99163.0,0.301265]
[1737971179748,0.151257,99169.0,99163.0,0.301265]
[1737971180053,0.0457,99165.0,99159.0,0.151271]
[1737971180264,0.0457,99165.0,99161.0,0.151268]
[1737971180478,0.0457,99165.0,99164.0,0.151264]
[1737971180884,0.001,99175.0,99174.0,0.151249]
[1737971181081,0.11090521,99178.0,99175.0,0.151247]
[1737971181639,0.11090521,99178.0,99176.0,0.151246]
[1737971183127,0.00870775,99177.0,99176.0,0.301246]
[1737971183544,0.01620553,99177.0,99176.0,0.39859329]
[1737971183722,0.01620553,99177.0,99176.0,0.49729329]
[1737971183933,0.01820553,99177.0,99176.0,0.49729329]
[1737971184071,0.01520553,99177.0,99176.0,0.49729329]
[1737971184494,0.01520553,99177.0,99176.0,0.49929329]
[1737971184707,0.00770775,99177.0,99176.0,0.49929329]
[1737971185641,0.00770775,99177.0,99176.0,0.50029329]
[1737971187351,0.00770775,99177.0,99176.0,0.304246]
[1737971194952,0.00770775,99177.0,99176.0,0.327246]
[1737971195162,0.00770775,99177.0,99176.0,0.42459329]
[1737971196032,0.00770775,99177.0,99176.0,0.304246]
[1737971196208,0.00770775,99177.0,99176.0,0.154246]
[1737971197063,0.01523948,99177.0,99176.0,0.154246]
[1737971197271,0.01523948,99177.0,99176.0,0.15325424]
[1737971197479,0.01523948,99177.0,99176.0,0.152246]
[1737971197614,0.01523948,99177.0,99176.0,0.153246]
[1737971197825,0.01523948,99177.0,99176.0,0.152246]
[1737971198639,0.01523948,99177.0,99176.0,0.151246]
[1737971198813,0.01523948,99177.0,99176.0,0.152246]
[1737971199454,0.01523948,99177.0,99176.0,0.151246]
[1737971199664,0.01523948,99177.0,99176.0,0.152246]
[1737971200192,0.20013948,99177.0,99176.0,0.151246]
[1737971200394,0.20013948,99177.0,99176.0,0.152246]
[1737971200812,0.20013948,99177.0,99176.0,0.151246]
[1737971201021,0.20113948,99177.0,99176.0,0.151246]
[1737971201360,0.20013948,99177.0,99176.0,0.151246]
[1737971201559,0.20113948,99177.0,99176.0,0.151246]
[1737971202596,0.20143684,99177.0,99176.0,0.151246]
[1737971203207,0.20043684,99177.0,99176.0,0.151246]
[1737971203626,0.20143684,99177.0,99176.0,0.151246]
[1737971204073,0.20043684,99177.0,99176.0,0.151246]
[1737971204313,0.20043684,99177.0,99176.0,0.15225426]
[1737971204527,0.20043684,99177.0,99176.0,0.151246]
[1737971205013,0.20043684,99177.0,99176.0,0.301246]
[1737971205184,0.20043684,99177.0,99176.0,1.801246]
[1737971205417,0.20043684,99177.0,99176.0,1.89859329]
[1737971205592,0.20043684,99177.0,99176.0,1.92159329]
[1737971206015,0.01553684,99177.0,99176.0,1.92159329]
[1737971207801,0.01553684,99177.0,99176.0,2.02960929]
[1737971209401,0.00800511,99177.0,99176.0,2.02960929]
[1737971209637,0.00800511,99177.0,99176.0,0.52960929]
[1737971210150,0.00800511,99177.0,99176.0,2.02960929]
[1737971210322,0.00800511,99177.0,99176.0,2.03060929]
[1737971210540,0.1849,99222.0,99192.0,0.01]
[1737971210766,7e-07,99199.0,99198.0,0.301212]
[1737971210939,7e-07,99199.0,99198.0,0.42155929]
[1737971211318,7e-07,99199.0,99198.0,1.92155929]
[1737971211527,7e-07,99199.0,99198.0,1.93155929]
[1737971211934,5.2e-07,99199.0,99198.0,1.93455929]
[1737971212145,5.2e-07,99199.0,99198.0,2.01145929]
[1737971213095,5.2e-07,99199.0,99198.0,2.01245929]
[1737971214280,1.2e-07,99199.0,99198.0,2.03245929]
[1737971214437,1.2e-07,99199.0,99198.0,2.04241811]
[1737971214865,1.2e-07,99199.0,99198.0,2.03941811]
[1737971215501,1.2e-07,99199.0,99198.0,2.04441811]
[1737971215653,1.2e-07,99199.0,99198.0,2.03941811]
[1737971216062,1.2e-07,99199.0,99198.0,2.04741811]
[1737971217810,1.2e-07,99199.0,99198.0,0.54741811]
[1737971218169,1.2e-07,99199.0,99198.0,0.53741811]
[1737971218378,1.2e-07,99199.0,99198.0,0.54901811]
[1737971218532,1.2e-07,99199.0,99198.0,0.53901811]
[1737971218731,1.2e-07,99199.0,99198.0,0.55901811]
[1737971219345,1.2e-07,99199.0,99198.0,0.55895281]
[1737971220490,1.2e-07,99199.0,99198.0,0.56195281]
[1737971220698,0.00029779,99223.0,99222.0,0.324176]
[1737971220936,0.00029779,99223.0,99222.0,0.42152329]
[1737971221511,0.00029779,99223.0,99222.0,0.80963229]
[1737971222158,0.00029779,99223.0,99222.0,2.32281369]
[1737971222797,0.00029779,99223.0,99222.0,2.29271169]
[1737971223006,0.00029779,99223.0,99222.0,2.06042369]
[1737971223229,0.00029779,99223.0,99222.0,2.06042469]
[1737971223481,0.00029779,99223.0,99222.0,0.43770469]
[1737971223482,0.00129779,99223.0,99222.0,0.43770469]
[1737971223915,0.00129779,99223.0,99222.0,0.3173574]
[1737971224119,0.18619779,99223.0,99222.0,0.1673574]
[1737971224325,0.18619779,99223.0,99222.0,0.1693574]
[1737971224534,0.18619779,99223.0,99222.0,0.1923574]
[1737971224739,0.18619779,99223.0,99222.0,0.43770469]
[1737971225147,0.18519779,99223.0,99222.0,0.3143574]
[1737971225574,0.18519779,99223.0,99222.0,0.3133574]
[1737971226194,0.18519779,99223.0,99222.0,0.3113574]
[1737971226601,0.18519779,99223.0,99222.0,0.3133574]
[1737971226795,0.18519779,99223.0,99222.0,0.3113574]
[1737971227012,0.18519779,99223.0,99222.0,0.43170469]
[1737971227230,0.18519779,99223.0,99222.0,0.43270469]
[1737971227674,0.18519779,99223.0,99222.0,0.43170469]
[1737971227893,0.00029779,99223.0,99222.0,1.19542569]
[1737971228106,0.00029779,99223.0,99222.0,0.87637369]
[1737971228315,0.00029779,99223.0,99222.0,0.81108369]
[1737971228553,0.00029779,99223.0,99222.0,0.62594269]
[1737971228759,0.00029779,99223.0,99222.0,0.62494269]
[1737971228989,0.00029779,99223.0,99222.0,0.62694269]
[1737971229315,0.00029779,99223.0,99222.0,0.62494269]
[1737971229514,0.00029779,99223.0,99222.0,2.12494269]
[1737971229892,0.00029779,99223.0,99222.0,2.12694269]
[1737971230105,0.00029779,99223.0,99222.0,2.10174769]
[1737971230524,7.9e-07,99223.0,99222.0,2.10174769]
[1737971230722,7.9e-07,99223.0,99222.0,1.93470469]
[1737971231349,7.9e-07,99223.0,99222.0,1.93370469]
[1737971231545,7.9e-07,99223.0,99222.0,1.93270469]
[1737971231962,7.9e-07,99223.0,99222.0,1.93770469]